[Event "Live Chess"]
[Site "Chess.com"]
[Date "2023.05.20"]
[Round "-"]
[White "KGreenGator"]
[Black "trekker123"]
[Result "1-0"]
[WhiteElo "1791"]
[BlackElo "2083"]
[TimeControl "300"]
[EndTime "14:16:05 PDT"]
[Termination "KGreenGator won on time"]

1. c4 {[%clk 0:04:58.5]} 1... Nf6 {[%clk 0:04:57.7]} 2. Nc3 {[%clk 0:04:57.6]}
2... g6 {[%clk 0:04:57.1]} 3. d4 {[%clk 0:04:53.3]} 3... Bg7 {[%clk 0:04:56.1]}
4. Nf3 {[%clk 0:04:52.9]} 4... O-O {[%clk 0:04:54.5]} 5. e4 {[%clk 0:04:52.1]}
5... d6 {[%clk 0:04:53.3]} 6. Be2 {[%clk 0:04:48.7]} 6... e5 {[%clk 0:04:51.9]}
7. d5 {[%clk 0:04:45.1]} 7... a5 {[%clk 0:04:48.4]} 8. O-O {[%clk 0:04:43.2]}
8... Na6 {[%clk 0:04:39.3]} 9. Re1 {[%clk 0:04:39.6]} 9... Nc5 {[%clk
0:04:36.3]} 10. Bd3 {[%clk 0:04:37.7]} 10... Ne8 {[%clk 0:04:28.3]} 11. Bc2
{[%clk 0:04:36.5]} 11... f5 {[%clk 0:04:23.8]} 12. exf5 {[%clk 0:04:32.8]} 12...
Bxf5 {[%clk 0:04:21.1]} 13. Bg5 {[%clk 0:04:28.5]} 13... Qd7 {[%clk 0:04:14.1]}
14. a3 {[%clk 0:04:24.3]} 14... Bxc2 {[%clk 0:04:03.6]} 15. Qxc2 {[%clk
0:04:22.4]} 15... a4 {[%clk 0:03:45.8]} 16. Ne4 {[%clk 0:04:20.1]} 16... Nb3
{[%clk 0:03:39.2]} 17. Rab1 {[%clk 0:04:17.5]} 17... Rxf3 {[%clk 0:03:36]} 18.
gxf3 {[%clk 0:04:14.5]} 18... Nd4 {[%clk 0:03:30.5]} 19. Qd3 {[%clk 0:04:11.4]}
19... Qh3 {[%clk 0:03:20.7]} 20. Ng3 {[%clk 0:04:09.4]} 20... Nf6 {[%clk
0:03:04.7]} 21. f4 {[%clk 0:04:06]} 21... Ng4 {[%clk 0:02:57.2]} 22. Re2 {[%clk
0:03:12.2]} 22... Qxh2+ {[%clk 0:02:52.3]} 23. Kf1 {[%clk 0:03:11.4]} 23... Rf8
{[%clk 0:02:12.7]} 24. f3 {[%clk 0:03:06.8]} 24... exf4 {[%clk 0:02:03.2]} 25.
Rxh2 {[%clk 0:03:03.4]} 25... Nxh2+ {[%clk 0:02:01.1]} 26. Kg2 {[%clk
0:02:58.3]} 26... fxg3 {[%clk 0:02:00]} 27. f4 {[%clk 0:02:52.3]} 27... Re8
{[%clk 0:01:42.4]} 28. Kxg3 {[%clk 0:02:42.8]} 28... Nhf3 {[%clk 0:01:40.4]} 29.
Rf1 {[%clk 0:02:33.9]} 29... Nxg5 {[%clk 0:01:30.9]} 30. fxg5 {[%clk 0:02:31.7]}
30... Nf5+ {[%clk 0:01:29.9]} 31. Kg4 {[%clk 0:02:26.3]} 31... Bxb2 {[%clk
0:01:21.5]} 32. Rf2 {[%clk 0:02:18.5]} 32... Bd4 {[%clk 0:01:14.8]} 33. Rf3
{[%clk 0:02:12.6]} 33... Re1 {[%clk 0:00:59.8]} 34. Rxf5 {[%clk 0:02:07.8]}
34... gxf5+ {[%clk 0:00:53.6]} 35. Kxf5 {[%clk 0:02:04]} 35... Be5 {[%clk
0:00:42.2]} 36. g6 {[%clk 0:01:56.8]} 36... hxg6+ {[%clk 0:00:37.8]} 37. Ke6
{[%clk 0:01:55.6]} 37... Kg7 {[%clk 0:00:33]} 38. Kd7 {[%clk 0:01:54.1]} 38...
c5 {[%clk 0:00:25.6]} 39. dxc6 {[%clk 0:01:52.4]} 39... bxc6 {[%clk 0:00:25.2]}
40. Kxc6 {[%clk 0:01:51.4]} 40... Kf6 {[%clk 0:00:21]} 41. Kb5 {[%clk
0:01:49.8]} 41... g5 {[%clk 0:00:17.1]} 42. Kxa4 {[%clk 0:01:48.7]} 42... g4
{[%clk 0:00:14.2]} 43. Kb5 {[%clk 0:01:45.5]} 43... g3 {[%clk 0:00:12.9]} 44. a4
{[%clk 0:01:41.7]} 1-0

[Event "Live Chess"]
[Site "Chess.com"]
[Date "2023.05.20"]
[Round "-"]
[White "gmnorfolk"]
[Black "parcellforce"]
[Result "1-0"]
[WhiteElo "2100"]
[BlackElo "1371"]
[TimeControl "300"]
[EndTime "14:16:05 PDT"]
[Termination "gmnorfolk won by checkmate"]

1. d4 {[%clk 0:04:58.7]} 1... d5 {[%clk 0:04:58.4]} 2. c4 {[%clk 0:04:57.5]}
2... e6 {[%clk 0:04:55.3]} 3. Nc3 {[%clk 0:04:56.7]} 3... Nf6 {[%clk 0:04:54.8]}
4. cxd5 {[%clk 0:04:55.3]} 4... Nxd5 {[%clk 0:04:52.7]} 5. e4 {[%clk 0:04:52.8]}
5... Nb6 {[%clk 0:04:46.6]} 6. Nf3 {[%clk 0:04:49.8]} 6... Nc6 {[%clk
0:04:45.3]} 7. Bd3 {[%clk 0:04:48.3]} 7... Bb4 {[%clk 0:04:42.6]} 8. O-O {[%clk
0:04:46.2]} 8... Bxc3 {[%clk 0:04:41]} 9. bxc3 {[%clk 0:04:45.3]} 9... O-O
{[%clk 0:04:40.7]} 10. Qe2 {[%clk 0:04:39]} 10... Re8 {[%clk 0:04:35.5]} 11. e5
{[%clk 0:04:35.3]} 11... Nd5 {[%clk 0:04:22.7]} 12. Bd2 {[%clk 0:04:33.5]} 12...
Nde7 {[%clk 0:04:21.7]} 13. Qe4 {[%clk 0:04:31.5]} 13... g6 {[%clk 0:04:17]} 14.
Ng5 {[%clk 0:04:30.2]} 14... Nf5 {[%clk 0:04:04.5]} 15. Qf4 {[%clk 0:04:29.2]}
15... Kg7 {[%clk 0:03:46.9]} 16. Ne4 {[%clk 0:04:24]} 16... Qh4 {[%clk
0:03:26.5]} 17. g4 {[%clk 0:04:17.8]} 17... Nh6 {[%clk 0:03:12.3]} 18. Nf6
{[%clk 0:04:12.1]} 18... Ne7 {[%clk 0:03:00.6]} 19. f3 {[%clk 0:04:04]} 19...
Nd5 {[%clk 0:02:56.8]} 20. Qg3 {[%clk 0:03:49.7]} 20... Qxg3+ {[%clk 0:02:53.2]}
21. hxg3 {[%clk 0:03:48.1]} 21... Ng8 {[%clk 0:02:47.3]} 22. g5 {[%clk
0:03:44.7]} 22... Ngxf6 {[%clk 0:02:45.2]} 23. gxf6+ {[%clk 0:03:41.7]} 23...
Kg8 {[%clk 0:02:44.6]} 24. c4 {[%clk 0:03:38.5]} 24... Nb6 {[%clk 0:02:43.4]}
25. a4 {[%clk 0:03:37.7]} 25... Nd7 {[%clk 0:02:42.9]} 26. f4 {[%clk 0:03:34]}
26... b6 {[%clk 0:02:42.4]} 27. Be4 {[%clk 0:03:32.8]} 27... Rb8 {[%clk
0:02:41.2]} 28. a5 {[%clk 0:03:31.5]} 28... Bb7 {[%clk 0:02:38.7]} 29. d5 {[%clk
0:03:29.6]} 29... exd5 {[%clk 0:02:37.6]} 30. cxd5 {[%clk 0:03:28.2]} 30... Nc5
{[%clk 0:02:36.9]} 31. Bf3 {[%clk 0:03:27.1]} 31... bxa5 {[%clk 0:02:33.3]} 32.
Bxa5 {[%clk 0:03:23.7]} 32... Nd3 {[%clk 0:02:29.9]} 33. Bxc7 {[%clk 0:03:19.7]}
33... Rbc8 {[%clk 0:02:28.4]} 34. d6 {[%clk 0:03:18.9]} 34... Bxf3 {[%clk
0:02:22.4]} 35. Rxf3 {[%clk 0:03:17.4]} 35... Nc5 {[%clk 0:02:21.6]} 36. Rxa7
{[%clk 0:03:14.2]} 36... Nd7 {[%clk 0:02:21.1]} 37. Re3 {[%clk 0:03:09.5]} 37...
h6 {[%clk 0:02:20.4]} 38. Kf2 {[%clk 0:03:07.7]} 38... g5 {[%clk 0:02:19.7]} 39.
Kf3 {[%clk 0:03:05.3]} 39... Kh7 {[%clk 0:02:19.1]} 40. Ra1 {[%clk 0:03:02.8]}
40... Kg6 {[%clk 0:02:18.4]} 41. g4 {[%clk 0:02:59.7]} 41... h5 {[%clk
0:02:11.8]} 42. gxh5+ {[%clk 0:02:56.9]} 42... Kxh5 {[%clk 0:02:11.7]} 43. f5
{[%clk 0:02:54]} 43... g4+ {[%clk 0:02:10.4]} 44. Kf4 {[%clk 0:02:52.2]} 44...
Nxf6 {[%clk 0:01:08.1]} 45. Rh1# {[%clk 0:02:47.8]} 1-0

[Event "Live Chess"]
[Site "Chess.com"]
[Date "2023.05.20"]
[Round "-"]
[White "Missedidea"]
[Black "Ferrarifan27"]
[Result "0-1"]
[WhiteElo "1733"]
[BlackElo "2067"]
[TimeControl "300"]
[EndTime "14:16:18 PDT"]
[Termination "Ferrarifan27 won by resignation"]

1. d4 {[%clk 0:04:58.6]} 1... Nf6 {[%clk 0:04:58.7]} 2. c4 {[%clk 0:04:56.5]}
2... e6 {[%clk 0:04:57.7]} 3. Nc3 {[%clk 0:04:53.7]} 3... Bb4 {[%clk 0:04:56.5]}
4. e3 {[%clk 0:04:52.1]} 4... c5 {[%clk 0:04:53.8]} 5. Bd3 {[%clk 0:04:50.8]}
5... Nc6 {[%clk 0:04:50.6]} 6. Nf3 {[%clk 0:04:49.4]} 6... d6 {[%clk 0:04:46.7]}
7. O-O {[%clk 0:04:47.9]} 7... Bxc3 {[%clk 0:04:45.9]} 8. bxc3 {[%clk
0:04:46.1]} 8... e5 {[%clk 0:04:45.2]} 9. e4 {[%clk 0:04:44]} 9... cxd4 {[%clk
0:04:36.3]} 10. cxd4 {[%clk 0:04:41.8]} 10... exd4 {[%clk 0:04:35.5]} 11. Bg5
{[%clk 0:04:39]} 11... O-O {[%clk 0:04:33.6]} 12. Re1 {[%clk 0:04:29.6]} 12...
h6 {[%clk 0:04:30.6]} 13. Bh4 {[%clk 0:04:27]} 13... Bg4 {[%clk 0:04:29.7]} 14.
h3 {[%clk 0:04:24.6]} 14... Bh5 {[%clk 0:04:28.9]} 15. g4 {[%clk 0:04:22.1]}
15... Bg6 {[%clk 0:04:27.5]} 16. Bc2 {[%clk 0:04:15.6]} 16... Re8 {[%clk
0:04:22]} 17. Nxd4 {[%clk 0:04:09]} 17... Qe7 {[%clk 0:04:14.3]} 18. Nf5 {[%clk
0:03:59]} 18... Bxf5 {[%clk 0:04:07.9]} 19. gxf5 {[%clk 0:03:52.9]} 19... Qe5
{[%clk 0:04:05.7]} 20. Bg3 {[%clk 0:03:47.3]} 20... Qc3 {[%clk 0:04:04.4]} 21.
Re3 {[%clk 0:03:38.7]} 21... Qxc4 {[%clk 0:04:02.4]} 22. Bb3 {[%clk 0:03:32.5]}
22... Qd4 {[%clk 0:03:56.3]} 23. Qxd4 {[%clk 0:03:27.3]} 23... Nxd4 {[%clk
0:03:56.2]} 24. Bxd6 {[%clk 0:03:19.7]} 24... Nxe4 {[%clk 0:03:55.1]} 25. Ba4
{[%clk 0:03:10.2]} 25... Nxd6 {[%clk 0:03:46.3]} 26. Bxe8 {[%clk 0:03:06.7]}
26... Rxe8 {[%clk 0:03:37.6]} 27. Rd1 {[%clk 0:02:53.9]} 27... N4xf5 {[%clk
0:03:29.3]} 28. Rxe8+ {[%clk 0:02:45.6]} 28... Nxe8 {[%clk 0:03:29.2]} 29. Rd7
{[%clk 0:02:39.6]} 29... Nfd6 {[%clk 0:03:27.5]} 30. Kf1 {[%clk 0:02:37.5]}
30... a6 {[%clk 0:03:26]} 31. Ke2 {[%clk 0:02:36.6]} 31... g6 {[%clk 0:03:24]}
32. Kd3 {[%clk 0:02:35.5]} 32... Kg7 {[%clk 0:03:23.1]} 33. Kd4 {[%clk
0:02:30.5]} 33... Nf5+ {[%clk 0:03:10.7]} 34. Kc5 {[%clk 0:02:27]} 34... Ned6
{[%clk 0:03:06.4]} 35. Rxd6 {[%clk 0:02:25.2]} 35... Nxd6 {[%clk 0:03:04.8]} 36.
Kxd6 {[%clk 0:02:24.4]} 36... f5 {[%clk 0:02:48.1]} 37. Ke5 {[%clk 0:02:20.5]}
37... Kf7 {[%clk 0:02:46.6]} 38. f4 {[%clk 0:02:13.6]} 38... Ke7 {[%clk
0:02:42.7]} 39. h4 {[%clk 0:02:12.5]} 39... h5 {[%clk 0:02:40.4]} 40. Kd5 {[%clk
0:02:09.7]} 40... a5 {[%clk 0:02:31.4]} 41. Ke5 {[%clk 0:02:02.4]} 41... a4
{[%clk 0:02:30.2]} 42. Kd5 {[%clk 0:02:01.1]} 42... a3 {[%clk 0:02:29.5]} 43.
Kc4 {[%clk 0:01:59.3]} 43... Kd6 {[%clk 0:02:27.9]} 44. Kb4 {[%clk 0:01:55.5]}
44... Kd5 {[%clk 0:02:27.3]} 45. Kxa3 {[%clk 0:01:54.5]} 45... Ke4 {[%clk
0:02:26.7]} 46. Kb4 {[%clk 0:01:53.8]} 46... Kxf4 {[%clk 0:02:26.2]} 47. Kb5
{[%clk 0:01:52.9]} 47... Kg4 {[%clk 0:02:25.8]} 48. a4 {[%clk 0:01:51.3]} 48...
f4 {[%clk 0:02:25.1]} 49. Kb6 {[%clk 0:01:50.3]} 49... f3 {[%clk 0:02:24.4]} 50.
a5 {[%clk 0:01:49.6]} 50... f2 {[%clk 0:02:23.7]} 51. Kxb7 {[%clk 0:01:48.9]}
51... f1=Q {[%clk 0:02:22.9]} 52. a6 {[%clk 0:01:47.8]} 52... Qf3+ {[%clk
0:02:20.5]} 53. Kb8 {[%clk 0:01:45.2]} 53... Qb3+ {[%clk 0:02:15.8]} 54. Kc7
{[%clk 0:01:42.4]} 54... Qc4+ {[%clk 0:02:14.7]} 55. Kb7 {[%clk 0:01:40.6]}
55... Qb5+ {[%clk 0:02:13.3]} 56. Ka7 {[%clk 0:01:38.3]} 56... Kxh4 {[%clk
0:02:12.1]} 0-1

[Event "Live Chess"]
[Site "Chess.com"]
[Date "2023.05.20"]
[Round "-"]
[White "ACx04"]
[Black "raminguy"]
[Result "0-1"]
[WhiteElo "415"]
[BlackElo "1959"]
[TimeControl "300"]
[EndTime "14:16:31 PDT"]
[Termination "raminguy won by checkmate"]

1. e4 {[%clk 0:04:56]} 1... e5 {[%clk 0:04:58.4]} 2. Bc4 {[%clk 0:04:52.8]} 2...
Nc6 {[%clk 0:04:57.5]} 3. d3 {[%clk 0:04:51]} 3... Nf6 {[%clk 0:04:56.5]} 4. a3
{[%clk 0:04:48.3]} 4... Bc5 {[%clk 0:04:51.9]} 5. Nf3 {[%clk 0:04:46]} 5... O-O
{[%clk 0:04:48.5]} 6. O-O {[%clk 0:04:44.6]} 6... h6 {[%clk 0:04:44.4]} 7. h3
{[%clk 0:04:43]} 7... a5 {[%clk 0:04:41.7]} 8. a4 {[%clk 0:04:40.7]} 8... d6
{[%clk 0:04:40.8]} 9. Be3 {[%clk 0:04:36.9]} 9... Bxe3 {[%clk 0:04:39.4]} 10.
fxe3 {[%clk 0:04:35.9]} 10... Be6 {[%clk 0:04:39.3]} 11. Bxe6 {[%clk 0:04:34.2]}
11... fxe6 {[%clk 0:04:39.2]} 12. d4 {[%clk 0:04:31.8]} 12... Nxe4 {[%clk
0:04:35.7]} 13. dxe5 {[%clk 0:04:25.5]} 13... dxe5 {[%clk 0:04:34.3]} 14. Qxd8
{[%clk 0:04:23.5]} 14... Raxd8 {[%clk 0:04:32.8]} 15. c3 {[%clk 0:04:21.4]}
15... Rd3 {[%clk 0:04:29.7]} 16. Nbd2 {[%clk 0:04:19.6]} 16... Nxd2 {[%clk
0:04:27.9]} 17. Nxd2 {[%clk 0:04:18.3]} 17... Rxd2 {[%clk 0:04:27.8]} 18. b4
{[%clk 0:04:16.9]} 18... axb4 {[%clk 0:04:24.1]} 19. cxb4 {[%clk 0:04:16.5]}
19... Nxb4 {[%clk 0:04:23.3]} 20. Rab1 {[%clk 0:04:14.2]} 20... c5 {[%clk
0:04:21.3]} 21. a5 {[%clk 0:04:12.4]} 21... Rxf1+ {[%clk 0:04:15.1]} 22. Rxf1
{[%clk 0:04:10.9]} 22... Ra2 {[%clk 0:04:13.7]} 23. e4 {[%clk 0:04:07.5]} 23...
Rxa5 {[%clk 0:04:12.2]} 24. g4 {[%clk 0:04:04.8]} 24... c4 {[%clk 0:04:10]} 25.
Rc1 {[%clk 0:04:03]} 25... Rc5 {[%clk 0:04:07.9]} 26. Kg2 {[%clk 0:04:00.6]}
26... c3 {[%clk 0:04:07.2]} 27. Kg3 {[%clk 0:03:59.1]} 27... c2 {[%clk
0:04:06.8]} 28. Kh4 {[%clk 0:03:57.1]} 28... Nd3 {[%clk 0:04:06.4]} 29. Rxc2
{[%clk 0:03:54]} 29... Rxc2 {[%clk 0:04:06.3]} 30. g5 {[%clk 0:03:52.3]} 30...
b5 {[%clk 0:04:06]} 31. gxh6 {[%clk 0:03:51.4]} 31... gxh6 {[%clk 0:04:05.9]}
32. Kh5 {[%clk 0:03:49.8]} 32... Kh7 {[%clk 0:04:05.5]} 33. h4 {[%clk 0:03:48]}
33... b4 {[%clk 0:04:04.7]} 34. Kg4 {[%clk 0:03:46.7]} 34... b3 {[%clk
0:04:04.6]} 35. Kh5 {[%clk 0:03:43.1]} 35... b2 {[%clk 0:04:04.5]} 36. Kg4
{[%clk 0:03:41.9]} 36... b1=Q {[%clk 0:04:04.1]} 37. h5 {[%clk 0:03:41.8]} 37...
Qd1+ {[%clk 0:04:03.1]} 38. Kh4 {[%clk 0:03:38.4]} 38... Rh2+ {[%clk 0:04:01.9]}
39. Kg3 {[%clk 0:03:36.8]} 39... Qg1+ {[%clk 0:03:59.9]} 40. Kf3 {[%clk
0:03:30.5]} 40... Qf2+ {[%clk 0:03:59.8]} 41. Kg4 {[%clk 0:03:29.3]} 41... Rh4#
{[%clk 0:03:59.5]} 0-1

[Event "Live Chess"]
[Site "Chess.com"]
[Date "2023.05.20"]
[Round "-"]
[White "Pandreq"]
[Black "LozzaLoaf"]
[Result "1-0"]
[WhiteElo "1255"]
[BlackElo "278"]
[TimeControl "300"]
[EndTime "14:16:34 PDT"]
[Termination "Pandreq won by checkmate"]

1. d4 {[%clk 0:04:57.5]} 1... Nc6 {[%clk 0:04:56.7]} 2. e4 {[%clk 0:04:55.9]}
2... f6 {[%clk 0:04:54]} 3. c4 {[%clk 0:04:54.4]} 3... e5 {[%clk 0:04:53.1]} 4.
d5 {[%clk 0:04:53.2]} 4... Nb4 {[%clk 0:04:51.6]} 5. a3 {[%clk 0:04:47.7]} 5...
Na6 {[%clk 0:04:43.5]} 6. Nf3 {[%clk 0:04:42.3]} 6... c6 {[%clk 0:04:42.4]} 7.
Nc3 {[%clk 0:04:37.6]} 7... cxd5 {[%clk 0:04:40.8]} 8. cxd5 {[%clk 0:04:36.3]}
8... Nc5 {[%clk 0:04:36.8]} 9. Be3 {[%clk 0:04:26.7]} 9... d6 {[%clk 0:04:35.7]}
10. Bxc5 {[%clk 0:04:24.7]} 10... dxc5 {[%clk 0:04:34.2]} 11. Bb5+ {[%clk
0:04:12.1]} 11... Bd7 {[%clk 0:04:30.2]} 12. Qa4 {[%clk 0:04:10.4]} 12... Bxb5
{[%clk 0:04:26.6]} 13. Nxb5 {[%clk 0:04:05.6]} 13... Qd7 {[%clk 0:04:24.7]} 14.
Nc7+ {[%clk 0:03:56.5]} 14... Kd8 {[%clk 0:04:18.9]} 15. Qxd7+ {[%clk
0:03:53.5]} 15... Kxd7 {[%clk 0:04:17.5]} 16. Nxa8 {[%clk 0:03:52.5]} 16... g6
{[%clk 0:04:13.8]} 17. Rc1 {[%clk 0:03:48.4]} 17... f5 {[%clk 0:04:08.9]} 18.
exf5 {[%clk 0:03:45.4]} 18... gxf5 {[%clk 0:04:07.6]} 19. Nxe5+ {[%clk
0:03:44.2]} 19... Kd6 {[%clk 0:04:00.2]} 20. Nc4+ {[%clk 0:03:37.6]} 20... Kxd5
{[%clk 0:03:55.8]} 21. Nc7+ {[%clk 0:03:33.7]} 21... Kc6 {[%clk 0:03:54]} 22.
Ne6 {[%clk 0:03:27.4]} 22... Kd5 {[%clk 0:03:50.8]} 23. Nxf8 {[%clk 0:03:25.2]}
23... Ne7 {[%clk 0:03:47.5]} 24. Nd7 {[%clk 0:03:20]} 24... Re8 {[%clk
0:03:46.1]} 25. Nf6+ {[%clk 0:03:17.9]} 25... Ke6 {[%clk 0:03:43.3]} 26. Nxe8
{[%clk 0:03:17.8]} 26... Kf7 {[%clk 0:03:41.8]} 27. Ned6+ {[%clk 0:03:15.4]}
27... Ke6 {[%clk 0:03:40.4]} 28. Nxb7 {[%clk 0:03:14.3]} 28... Kd5 {[%clk
0:03:39.2]} 29. O-O {[%clk 0:03:07.8]} 29... h5 {[%clk 0:03:34.5]} 30. Rfd1+
{[%clk 0:03:06.4]} 30... Ke4 {[%clk 0:03:29.9]} 31. Nbd6+ {[%clk 0:03:04.5]}
31... Kf4 {[%clk 0:03:25.9]} 32. g3+ {[%clk 0:03:02.4]} 32... Kg5 {[%clk
0:03:24.6]} 33. h4+ {[%clk 0:02:58.7]} 33... Kg4 {[%clk 0:03:22.1]} 34. Ne5+
{[%clk 0:02:54.5]} 34... Kh3 {[%clk 0:03:18.2]} 35. Rxc5 {[%clk 0:02:43.8]}
35... f4 {[%clk 0:03:12.8]} 36. Nf5 {[%clk 0:02:37.4]} 36... Nxf5 {[%clk
0:03:10.8]} 37. Nf3 {[%clk 0:02:34.7]} 37... fxg3 {[%clk 0:03:03.4]} 38. Rxf5
{[%clk 0:02:31.4]} 38... gxf2+ {[%clk 0:03:01.4]} 39. Kxf2 {[%clk 0:02:26.7]}
39... Kg4 {[%clk 0:02:59.4]} 40. Nd4 {[%clk 0:02:21.1]} 40... Kxh4 {[%clk
0:02:57.6]} 41. Rg1 {[%clk 0:02:18.4]} 41... a5 {[%clk 0:02:53.6]} 42. Rfg5
{[%clk 0:02:13.4]} 42... a4 {[%clk 0:02:52]} 43. Ke3 {[%clk 0:02:06.3]} 43...
Kh3 {[%clk 0:02:46.7]} 44. Rxh5# {[%clk 0:02:06.2]} 1-0

[Event "Live Chess"]
[Site "Chess.com"]
[Date "2023.05.20"]
[Round "-"]
[White "xx_blindpuffin_xx"]
[Black "jk0110"]
[Result "1-0"]
[WhiteElo "2185"]
[BlackElo "1101"]
[TimeControl "300"]
[EndTime "14:16:43 PDT"]
[Termination "xx_blindpuffin_xx won by resignation"]

1. d4 {[%clk 0:04:58.4]} 1... Nf6 {[%clk 0:04:58.2]} 2. Bf4 {[%clk 0:04:57.3]}
2... d5 {[%clk 0:04:54]} 3. e3 {[%clk 0:04:55.7]} 3... Bf5 {[%clk 0:04:51.8]} 4.
Nf3 {[%clk 0:04:54.5]} 4... h6 {[%clk 0:04:49.4]} 5. c4 {[%clk 0:04:53.7]} 5...
e6 {[%clk 0:04:42.2]} 6. Nc3 {[%clk 0:04:51.8]} 6... a6 {[%clk 0:04:32.6]} 7.
Qb3 {[%clk 0:04:49]} 7... b6 {[%clk 0:04:10.2]} 8. cxd5 {[%clk 0:04:47.1]} 8...
exd5 {[%clk 0:03:59.5]} 9. Be2 {[%clk 0:04:42.5]} 9... Nc6 {[%clk 0:03:25.6]}
10. O-O {[%clk 0:04:39.1]} 10... Bb4 {[%clk 0:03:13.2]} 11. Rac1 {[%clk
0:04:33.7]} 11... a5 {[%clk 0:02:44.5]} 12. a3 {[%clk 0:04:32]} 12... Be7 {[%clk
0:02:41.5]} 13. Nb5 {[%clk 0:04:29.7]} 13... O-O {[%clk 0:02:05.9]} 14. Rxc6
{[%clk 0:04:20.5]} 14... Bd7 {[%clk 0:01:51.2]} 15. Bxc7 {[%clk 0:03:45.1]}
15... Qc8 {[%clk 0:01:48]} 16. Rcc1 {[%clk 0:03:42.2]} 16... Ne4 {[%clk
0:01:28.9]} 17. Nd6 {[%clk 0:03:33]} 17... Bxd6 {[%clk 0:01:23]} 18. Bxd6 {[%clk
0:03:32.8]} 18... Qb7 {[%clk 0:01:11.5]} 19. Rc7 {[%clk 0:03:18.6]} 19... Qb8
{[%clk 0:00:49.9]} 20. Bf4 {[%clk 0:03:16.1]} 20... Nd2 {[%clk 0:00:34.6]} 21.
Nxd2 {[%clk 0:03:14.4]} 1-0

[Event "Live Chess"]
[Site "Chess.com"]
[Date "2023.05.20"]
[Round "-"]
[White "EdenHazard8"]
[Black "LiamBellwood"]
[Result "0-1"]
[WhiteElo "2060"]
[BlackElo "2065"]
[TimeControl "300"]
[EndTime "14:16:50 PDT"]
[Termination "LiamBellwood won by checkmate"]

1. e4 {[%clk 0:04:57.1]} 1... e6 {[%clk 0:04:59.9]} 2. d4 {[%clk 0:04:55.8]}
2... d5 {[%clk 0:04:59.5]} 3. exd5 {[%clk 0:04:54.2]} 3... exd5 {[%clk
0:04:59.4]} 4. Bd3 {[%clk 0:04:53.7]} 4... Bd6 {[%clk 0:04:59]} 5. c3 {[%clk
0:04:53.3]} 5... Ne7 {[%clk 0:04:58.7]} 6. Nf3 {[%clk 0:04:52.9]} 6... Bg4
{[%clk 0:04:57.8]} 7. h3 {[%clk 0:04:52.2]} 7... Bh5 {[%clk 0:04:56.8]} 8. O-O
{[%clk 0:04:48.6]} 8... Nbc6 {[%clk 0:04:51.4]} 9. Re1 {[%clk 0:04:47.4]} 9...
Qd7 {[%clk 0:04:50.3]} 10. Nbd2 {[%clk 0:04:46.8]} 10... Bg6 {[%clk 0:04:45.4]}
11. Nf1 {[%clk 0:04:45.1]} 11... Bxd3 {[%clk 0:04:41.4]} 12. Qxd3 {[%clk
0:04:45]} 12... O-O {[%clk 0:04:37]} 13. Ne5 {[%clk 0:04:41.6]} 13... Bxe5
{[%clk 0:04:31]} 14. dxe5 {[%clk 0:04:41.5]} 14... Ng6 {[%clk 0:04:30.6]} 15. f4
{[%clk 0:04:38.3]} 15... Rfe8 {[%clk 0:04:29.6]} 16. Rd1 {[%clk 0:04:34.2]}
16... Rad8 {[%clk 0:04:26]} 17. Be3 {[%clk 0:04:29.5]} 17... Nh4 {[%clk
0:04:16.1]} 18. Bf2 {[%clk 0:04:21.2]} 18... Ng6 {[%clk 0:04:05.4]} 19. Bg3
{[%clk 0:04:17.6]} 19... d4 {[%clk 0:03:55]} 20. cxd4 {[%clk 0:04:06.5]} 20...
Qxd4+ {[%clk 0:03:46.8]} 21. Qxd4 {[%clk 0:04:04.5]} 21... Nxd4 {[%clk
0:03:46.7]} 22. Kh2 {[%clk 0:04:03]} 22... Nf5 {[%clk 0:03:42.1]} 23. Rac1
{[%clk 0:03:54.3]} 23... c6 {[%clk 0:03:30.7]} 24. Rxd8 {[%clk 0:03:35.3]} 24...
Rxd8 {[%clk 0:03:30.6]} 25. Rc3 {[%clk 0:03:34.4]} 25... Rd4 {[%clk 0:02:55.1]}
26. Ne3 {[%clk 0:03:27]} 26... Nxe3 {[%clk 0:02:44.4]} 27. Rxe3 {[%clk
0:03:26.9]} 27... Nxf4 {[%clk 0:02:43.5]} 28. Bxf4 {[%clk 0:03:25.8]} 28... Rxf4
{[%clk 0:02:43.4]} 29. Rd3 {[%clk 0:03:25.4]} 29... Kf8 {[%clk 0:02:27.6]} 30.
Rd7 {[%clk 0:03:22.6]} 30... Rb4 {[%clk 0:02:26.7]} 31. b3 {[%clk 0:03:17.6]}
31... Ke8 {[%clk 0:02:24.5]} 32. Rc7 {[%clk 0:03:12.8]} 32... h5 {[%clk
0:02:21]} 33. e6 {[%clk 0:03:11.8]} 33... fxe6 {[%clk 0:02:14.4]} 34. Rxg7
{[%clk 0:03:10.4]} 34... h4 {[%clk 0:02:09.2]} 35. Rg4 {[%clk 0:03:06.8]} 35...
a5 {[%clk 0:01:56.5]} 36. Rxb4 {[%clk 0:03:02.2]} 36... axb4 {[%clk 0:01:56.4]}
37. g3 {[%clk 0:03:01.5]} 37... hxg3+ {[%clk 0:01:53.5]} 38. Kxg3 {[%clk
0:03:01.4]} 38... Kf7 {[%clk 0:01:52.5]} 39. Kf4 {[%clk 0:03:00.5]} 39... b5
{[%clk 0:01:46]} 40. Ke5 {[%clk 0:02:37.5]} 40... c5 {[%clk 0:01:42.2]} 41. Ke4
{[%clk 0:02:04]} 41... Kf6 {[%clk 0:01:35.6]} 42. h4 {[%clk 0:02:01.8]} 42... c4
{[%clk 0:01:28.1]} 43. bxc4 {[%clk 0:02:00.5]} 43... bxc4 {[%clk 0:01:27.3]} 44.
Kd4 {[%clk 0:01:59.2]} 44... c3 {[%clk 0:01:01.8]} 45. Kd3 {[%clk 0:01:58]}
45... Kg6 {[%clk 0:00:56.5]} 46. a3 {[%clk 0:01:56.9]} 46... bxa3 {[%clk
0:00:54.3]} 47. Kxc3 {[%clk 0:01:56.8]} 47... a2 {[%clk 0:00:38.3]} 48. Kb2
{[%clk 0:01:55.1]} 48... Kh5 {[%clk 0:00:24.7]} 49. Kxa2 {[%clk 0:01:55]} 49...
Kxh4 {[%clk 0:00:24.2]} 50. Kb3 {[%clk 0:01:54.5]} 50... Kg4 {[%clk 0:00:19.5]}
51. Kc3 {[%clk 0:01:54.4]} 51... Kf3 {[%clk 0:00:18.5]} 52. Kd2 {[%clk
0:01:51.2]} 52... e5 {[%clk 0:00:17.1]} 53. Ke1 {[%clk 0:01:50.2]} 53... e4
{[%clk 0:00:14.9]} 54. Kf1 {[%clk 0:01:49.2]} 54... Ke3 {[%clk 0:00:12.1]} 55.
Ke1 {[%clk 0:01:48.4]} 55... Kd3 {[%clk 0:00:11.4]} 56. Kd1 {[%clk 0:01:47.6]}
56... e3 {[%clk 0:00:10.6]} 57. Ke1 {[%clk 0:01:46.9]} 57... e2 {[%clk
0:00:09.9]} 58. Kf2 {[%clk 0:01:45]} 58... Kd2 {[%clk 0:00:09.8]} 59. Kf3 {[%clk
0:01:44.9]} 59... e1=Q {[%clk 0:00:09.2]} 60. Kf4 {[%clk 0:01:44.2]} 60... Qe6
{[%clk 0:00:08.6]} 61. Kg5 {[%clk 0:01:43.3]} 61... Qf7 {[%clk 0:00:07.6]} 62.
Kg4 {[%clk 0:01:42.8]} 62... Qf6 {[%clk 0:00:06.9]} 63. Kg3 {[%clk 0:01:42.7]}
63... Qf5 {[%clk 0:00:06.3]} 64. Kg2 {[%clk 0:01:42.6]} 64... Qf4 {[%clk
0:00:05.8]} 65. Kg1 {[%clk 0:01:42.5]} 65... Qf3 {[%clk 0:00:04.6]} 66. Kh2
{[%clk 0:01:42.4]} 66... Ke3 {[%clk 0:00:03.5]} 67. Kg1 {[%clk 0:01:41.2]} 67...
Qe2 {[%clk 0:00:03.1]} 68. Kh1 {[%clk 0:01:40.4]} 68... Kf3 {[%clk 0:00:03]} 69.
Kg1 {[%clk 0:01:40]} 69... Qg2# {[%clk 0:00:02.9]} 0-1